[Event "Israel Youth-ch U12 2025"]
[Site "Rishon Le Zion"]
[Date "2025.04.11"]
[Round "9.1"]
[White "Sason, Noam"]
[Black "Triger, Eitan"]
[Result "1-0"]
[Annotator "NA"]
[ECO "C77"]
[WhiteElo "2075"]
[BlackElo "1978"]
[PlyCount "89"]
[EventDate "2025.04.03"]
[EventType "swiss"]
[EventCountry "ISR"]
[SourceTitle "playchess.com"]
[Source "ChessBase"]
[SourceQuality "1"]
[TimeControl "5400+30"]

1. e4 {[%emt 0:00:01]} e5 {[%emt 0:00:06]} 2. Nf3 {[%emt 0:00:04]} Nc6 {[%emt 0:00:05]} 3. Bb5 {[%emt 0:00:04]} a6 {[%emt 0:00:41]} 4. Ba4 {[%emt 0:00:05]} Nf6 {[%emt 0:00:04]} 5. d3 {[%emt 0:00:06]} b5 {[%emt 0:00:06]} 6. Bb3 {[%emt 0:00:04]} Bc5 {[%emt 0:00:04]} 7. Nc3 {[%emt 0:00:08]} d6 {[%emt 0:03:23]} 8. Nd5 {[%emt 0:00:07]} Na5 {[%emt 0:02:01]} 9. Bg5 {[%emt 0:01:34]} Nxb3 {[%emt 0:00:06]} 10. axb3 {[%emt 0:00:38]} c6 {[%emt 0:00:23]} 11. Nxf6+ {[%emt 0:00:58]} gxf6 {[%emt 0:00:10]} 12. Bh4 {[%emt 0:02:16]} Rg8 {[%emt 0:01:08]} 13. d4 {[%emt 0:05:26]} Bb6 {[%emt 0:04:15]} 14. Qd2 {[%emt 0:02:55]} Rg6 {[%emt 0:04:15]} 15. O-O-O {[%emt 0:06:29]} Be6 {[%emt 0:06:25]} 16. dxe5 {[%emt 0:08:01]} dxe5 {[%emt 0:00:06]} 17. Qc3 {[%emt 0:00:26]} Qc7 {[%emt 0:00:28]} 18. Bg3 {[%emt 0:01:44]} c5 {[%emt 0:04:27]} 19. Nh4 {[%emt 0:01:49]} Ba5 {[%emt 0:10:57]} 20. Qe3 {[%emt 0:03:34]} c4 {[%emt 0:04:40]} 21. bxc4 {[%emt 0:06:33]} Qxc4 {[%emt 0:00:05]} 22. b3 {[%emt 0:06:17]} Qb4 {[%emt 0:02:54]} 23. Nxg6 {[%emt 0:06:48]} fxg6 {[%emt 0:01:41]} 24. Rd3 {[%emt 0:11:40]} Bc4 {[%emt 0:16:56]} 25. bxc4 {[%emt 0:05:12]} bxc4 {[%emt 0:00:05]} 26. Rd5 {[%emt 0:02:22]} Rb8 {[%emt 0:00:29]} 27. Kd1 {[%emt 0:01:08]} Qa4 {[%emt 0:00:15]} 28. Qc1 {[%emt 0:08:04]} c3 {[%emt 0:00:06]} 29. Bxe5 {[%emt 0:04:37]} fxe5 {[%emt 0:01:13]} 30. Rxe5+ {[%emt 0:00:53]} Kd7 {[%emt 0:01:50]} 31. Qf4 {[%emt 0:03:42]} Rb1+ {[%emt 0:00:48]} 32. Ke2 {[%emt 0:00:08]} Qxc2+ {[%emt 0:00:41]} 33. Kf3 {[%emt 0:00:11]} Qd3+ {[%emt 0:05:47]} 34. Kg4 {[%emt 0:00:02]} Qe2+ {[%emt 0:00:13]} 35. Kh3 {[%emt 0:00:39]} Rb5 {[%emt 0:00:53]} 36. Qf7+ {[%emt 0:00:49]} Kc8 {[%emt 0:00:19]} 37. Qe8+ {[%emt 0:01:47]} Bd8 {[%emt 0:00:06]} 38. Qc6+ {[%emt 0:02:33]} Kb8 {[%emt 0:00:16]} 39. Qxc3 {[%emt 0:00:38]} Bc7 {[%emt 0:00:55]} 40. Rxb5+ {[%emt 0:00:43]} axb5 {[%emt 0:00:04]} 41. Qf3 {[%emt 0:00:57]} Qc4 {[%emt 0:00:08]} 42. g3 {[%emt 0:00:59]} h5 {[%emt 0:00:09]} 43. Rb1 {[%emt 0:00:35]} Ka7 {[%emt 0:00:29]} 44. Qb3 {[%emt 0:00:59]} Qxe4 {[%emt 0:04:04]} 45. Qxb5 {[%emt 0:00:16]} 1-0

[Event "Israel Youth-ch U12 2025"]
[Site "Rishon Le Zion"]
[Date "2025.04.11"]
[Round "9.2"]
[White "Hochman, Gur"]
[Black "Cohen, Israel"]
[Result "1-0"]
[Annotator "NA"]
[ECO "A08"]
[WhiteElo "1908"]
[BlackElo "1879"]
[PlyCount "105"]
[EventDate "2025.04.03"]
[EventType "swiss"]
[EventCountry "ISR"]
[SourceTitle "playchess.com"]
[Source "ChessBase"]
[SourceQuality "1"]
[TimeControl "5400+30"]

1. e4 {[%emt 0:00:01]} e6 {[%emt 0:00:15]} 2. d3 {[%emt 0:00:07]} d5 {[%emt 0:00:10]} 3. Nd2 {[%emt 0:00:05]} c5 {[%emt 0:00:13]} 4. Ngf3 {[%emt 0:00:07]} Nc6 {[%emt 0:00:17]} 5. g3 {[%emt 0:00:06]} Bd6 {[%emt 0:00:40]} 6. Bg2 {[%emt 0:00:06]} Nf6 {[%emt 0:00:53]} 7. O-O {[%emt 0:00:16]} O-O {[%emt 0:00:19]} 8. Re1 {[%emt 0:00:30]} Bc7 {[%emt 0:00:18]} 9. c3 {[%emt 0:00:23]} h6 {[%emt 0:01:53]} 10. h4 {[%emt 0:00:53]} Rb8 {[%emt 0:04:53]} 11. e5 {[%emt 0:01:42]} Nd7 {[%emt 0:01:30]} 12. d4 {[%emt 0:00:38]} f6 {[%emt 0:02:09]} 13. Bh3 {[%emt 0:06:24]} fxe5 {[%emt 0:12:18]} 14. Bxe6+ {[%emt 0:01:15]} Kh8 {[%emt 0:02:23]} 15. Bxd7 {[%emt 0:03:12]} Bxd7 {[%emt 0:00:26]} 16. Nxe5 {[%emt 0:01:55]} Qf6 {[%emt 0:15:00]} 17. f4 {[%emt 0:01:17]} Nxe5 {[%emt 0:03:12]} 18. dxe5 {[%emt 0:00:25]} Qg6 {[%emt 0:11:02]} 19. Nf1 {[%emt 0:03:53]} Bc6 {[%emt 0:08:22]} 20. h5 {[%emt 0:11:20]} Qe6 {[%emt 0:02:40]} 21. Ne3 {[%emt 0:05:32]} d4 {[%emt 0:12:08]} 22. Qg4 {[%emt 0:01:54]} Qxg4 {[%emt 0:01:58]} 23. Nxg4 {[%emt 0:00:48]} dxc3 {[%emt 0:00:19]} 24. bxc3 {[%emt 0:01:21]} Ba5 {[%emt 0:00:55]} 25. Bb2 {[%emt 0:01:56]} Rfd8 {[%emt 0:01:01]} 26. Kf2 {[%emt 0:07:10]} Rd2+ {[%emt 0:06:56]} 27. Re2 {[%emt 0:00:10]} Rbd8 {[%emt 0:00:24]} 28. Rae1 {[%emt 0:03:18]} Bb5 {[%emt 0:00:44]} 29. Ne3 {[%emt 0:03:25]} Bxe2 {[%emt 0:01:51]} 30. Rxe2 {[%emt 0:00:04]} Rxe2+ {[%emt 0:00:30]} 31. Kxe2 {[%emt 0:00:03]} b5 {[%emt 0:01:51]} 32. Nf5 {[%emt 0:01:47]} Bc7 {[%emt 0:03:48]} 33. Ba3 {[%emt 0:01:18]} Re8 {[%emt 0:00:46]} 34. Kf3 {[%emt 0:04:01]} Kh7 {[%emt 0:02:10]} 35. Ke4 {[%emt 0:02:06]} c4 {[%emt 0:00:58]} 36. Kd5 {[%emt 0:01:25]} g6 {[%emt 0:01:05]} 37. Nd6 {[%emt 0:11:58]} Bxd6 {[%emt 0:00:36]} 38. exd6 {[%emt 0:02:09]} Kg7 {[%emt 0:00:58]} 39. d7 {[%emt 0:00:45]} Rb8 {[%emt 0:00:22]} 40. Bd6 {[%emt 0:01:05]} Rd8 {[%emt 0:00:09]} 41. Ke6 {[%emt 0:00:27]} a5 {[%emt 0:00:49]} 42. Ke7 {[%emt 0:01:12]} Rxd7+ {[%emt 0:00:20]} 43. Kxd7 {[%emt 0:00:04]} gxh5 {[%emt 0:00:13]} 44. Ke6 {[%emt 0:01:45]} b4 {[%emt 0:00:11]} 45. cxb4 {[%emt 0:00:25]} axb4 {[%emt 0:00:12]} 46. Bxb4 {[%emt 0:00:09]} Kg6 {[%emt 0:00:10]} 47. f5+ {[%emt 0:00:24]} Kh7 {[%emt 0:00:07]} 48. f6 {[%emt 0:00:12]} h4 {[%emt 0:04:06]} 49. gxh4 {[%emt 0:23:32]} h5 {[%emt 0:00:00]} 50. f7 {[%emt 0:00:00]} Kg6 {[%emt 0:00:00]} 51. Bc3 {[%emt 0:00:00]} Kh7 {[%emt 0:00:00]} 52. f8=Q {[%emt 0:00:00]} Kg6 {[%emt 0:00:00]} 53. Qg7# {[%emt 0:00:00]} 1-0

[Event "Israel Youth-ch U12 2025"]
[Site "Rishon Le Zion"]
[Date "2025.04.11"]
[Round "9.3"]
[White "Jakobs, Yoav"]
[Black "Belkovsky, Guy"]
[Result "1-0"]
[Annotator "NA"]
[ECO "B27"]
[WhiteElo "1850"]
[BlackElo "2067"]
[PlyCount "151"]
[EventDate "2025.04.03"]
[EventType "swiss"]
[EventCountry "ISR"]
[SourceTitle "playchess.com"]
[Source "ChessBase"]
[SourceQuality "1"]
[TimeControl "5400+30"]

1. e4 {[%emt 0:00:02]} c5 {[%emt 0:00:04]} 2. Nf3 {[%emt 0:00:05]} g6 {[%emt 0:00:05]} 3. Bc4 {[%emt 0:00:04]} Bg7 {[%emt 0:00:10]} 4. c3 {[%emt 0:00:04]} e6 {[%emt 0:10:55]} 5. O-O {[%emt 0:00:44]} Ne7 {[%emt 0:02:49]} 6. Re1 {[%emt 0:05:17]} O-O {[%emt 0:06:01]} 7. e5 {[%emt 0:11:51]} d5 {[%emt 0:07:55]} 8. Bf1 {[%emt 0:05:50]} f6 {[%emt 0:05:05]} 9. exf6 {[%emt 0:03:04]} Bxf6 {[%emt 0:00:30]} 10. d4 {[%emt 0:05:33]} Nbc6 {[%emt 0:02:12]} 11. Bh6 {[%emt 0:01:13]} Re8 {[%emt 0:02:59]} 12. Bg5 {[%emt 0:12:47]} Bxg5 {[%emt 0:07:53]} 13. Nxg5 {[%emt 0:00:02]} Nf5 {[%emt 0:00:10]} 14. Nf3 {[%emt 0:00:05]} Qd6 {[%emt 0:01:51]} 15. Na3 {[%emt 0:06:38]} c4 {[%emt 0:03:39]} 16. Qc1 {[%emt 0:01:12]} Rf8 {[%emt 0:03:55]} 17. b3 {[%emt 0:02:14]} cxb3 {[%emt 0:01:28]} 18. axb3 {[%emt 0:00:42]} a6 {[%emt 0:11:36]} 19. Qg5 {[%emt 0:08:14]} Bd7 {[%emt 0:07:54]} 20. Nc2 {[%emt 0:06:46]} Ng7 {[%emt 0:01:15]} 21. Ne3 {[%emt 0:05:48]} Rf4 {[%emt 0:04:47]} 22. Ne5 {[%emt 0:01:49]} Raf8 {[%emt 0:00:24]} 23. N3g4 {[%emt 0:00:37]} Be8 {[%emt 0:00:34]} 24. Bd3 {[%emt 0:00:33]} Nh5 {[%emt 0:08:13]} 25. g3 {[%emt 0:01:19]} R4f6 {[%emt 0:02:10]} 26. Nxf6+ {[%emt 0:00:16]} Nxf6 {[%emt 0:00:05]} 27. h4 {[%emt 0:02:29]} Kg7 {[%emt 0:01:30]} 28. Qe3 {[%emt 0:00:34]} Ne7 {[%emt 0:00:18]} 29. b4 {[%emt 0:00:46]} Nf5 {[%emt 0:01:11]} 30. Bxf5 {[%emt 0:00:34]} exf5 {[%emt 0:00:10]} 31. f3 {[%emt 0:01:16]} Bb5 {[%emt 0:00:51]} 32. Ra2 {[%emt 0:02:10]} f4 {[%emt 0:00:47]} 33. gxf4 {[%emt 0:00:29]} Nh5 {[%emt 0:00:12]} 34. Ng4 {[%emt 0:00:08]} Re8 {[%emt 0:00:24]} 35. Qd2 {[%emt 0:01:40]} Qxf4 {[%emt 0:00:46]} 36. Rxe8 {[%emt 0:00:28]} Qg3+ {[%emt 0:00:04]} 37. Qg2 {[%emt 0:00:22]} Bxe8 {[%emt 0:00:17]} 38. Qxg3 {[%emt 0:00:29]} Nxg3 {[%emt 0:00:03]} 39. Kf2 {[%emt 0:00:50]} Nf5 {[%emt 0:00:06]} 40. Ne3 {[%emt 0:01:11]} Ne7 {[%emt 0:00:57]} 41. Ra5 {[%emt 0:00:29]} Bb5 {[%emt 0:00:06]} 42. Kg3 {[%emt 0:00:27]} Kf6 {[%emt 0:00:53]} 43. Kf4 {[%emt 0:00:17]} h5 {[%emt 0:00:10]} 44. Ra1 {[%emt 0:00:39]} Bc6 {[%emt 0:01:08]} 45. Rg1 {[%emt 0:00:38]} Nc8 {[%emt 0:00:11]} 46. c4 {[%emt 0:00:46]} dxc4 {[%emt 0:00:08]} 47. Nxc4 {[%emt 0:00:10]} Ne7 {[%emt 0:00:05]} 48. Ne3 {[%emt 0:00:38]} b6 {[%emt 0:03:11]} 49. Rd1 {[%emt 0:00:36]} Ke6 {[%emt 0:00:32]} 50. Re1 {[%emt 0:01:41]} Kf6 {[%emt 0:00:06]} 51. Ra1 {[%emt 0:00:15]} Bb5 {[%emt 0:00:05]} 52. d5 {[%emt 0:00:12]} Nc8 {[%emt 0:00:12]} 53. Rc1 {[%emt 0:00:31]} Nd6 {[%emt 0:00:03]} 54. Rc3 {[%emt 0:00:32]} a5 {[%emt 0:00:07]} 55. bxa5 {[%emt 0:01:55]} bxa5 {[%emt 0:00:05]} 56. Rc5 {[%emt 0:00:09]} a4 {[%emt 0:00:14]} 57. Nc2 {[%emt 0:00:02]} Bd7 {[%emt 0:00:32]} 58. Ra5 {[%emt 0:00:21]} Nf5 {[%emt 0:00:06]} 59. Ra6+ {[%emt 0:00:02]} Kf7 {[%emt 0:00:25]} 60. Kg5 {[%emt 0:01:00]} Ne7 {[%emt 0:01:20]} 61. Rf6+ {[%emt 0:00:22]} Ke8 {[%emt 0:00:10]} 62. d6 {[%emt 0:00:11]} Nd5 {[%emt 0:00:25]} 63. Rxg6 {[%emt 0:00:14]} Kf7 {[%emt 0:00:15]} 64. Rh6 {[%emt 0:06:42]} Kg7 {[%emt 0:00:15]} 65. Rg6+ {[%emt 0:00:52]} Kf7 {[%emt 0:00:04]} 66. f4 {[%emt 0:00:23]} Nc3 {[%emt 0:00:34]} 67. f5 {[%emt 0:00:25]} Bc8 {[%emt 0:01:15]} 68. Kf4 {[%emt 0:00:53]} Nb5 {[%emt 0:01:10]} 69. Ke5 {[%emt 0:00:26]} a3 {[%emt 0:00:18]} 70. Rg1 {[%emt 0:00:13]} a2 {[%emt 0:00:17]} 71. Nb4 {[%emt 0:00:32]} Nc3 {[%emt 0:00:22]} 72. Ra1 {[%emt 0:00:01]} Nb1 {[%emt 0:00:33]} 73. Rxa2 {[%emt 0:00:17]} Nc3 {[%emt 0:00:09]} 74. Ra7+ {[%emt 0:00:05]} Ke8 {[%emt 0:00:05]} 75. Re7+ {[%emt 0:00:08]} Kf8 {[%emt 0:00:07]} 76. Rc7 {[%emt 0:00:10]} 1-0

[Event "Israel Youth-ch U12 2025"]
[Site "Rishon Le Zion"]
[Date "2025.04.11"]
[Round "9.4"]
[White "Grechin, Yan"]
[Black "Chalopoviz, Ilay"]
[Result "1-0"]
[Annotator "NA"]
[ECO "E11"]
[WhiteElo "1693"]
[BlackElo "1633"]
[PlyCount "75"]
[EventDate "2025.04.03"]
[EventType "swiss"]
[EventCountry "ISR"]
[SourceTitle "playchess.com"]
[Source "ChessBase"]
[SourceQuality "1"]
[TimeControl "5400+30"]

1. c4 {[%emt 0:00:03]} e6 {[%emt 0:00:07]} 2. Nf3 {[%emt 0:00:29]} d5 {[%emt 0:00:14]} 3. d4 {[%emt 0:00:07]} Nf6 {[%emt 0:00:20]} 4. g3 {[%emt 0:00:10]} Bb4+ {[%emt 0:00:13]} 5. Bd2 {[%emt 0:00:25]} a5 {[%emt 0:00:24]} 6. Bg2 {[%emt 0:04:05]} O-O {[%emt 0:00:48]} 7. O-O {[%emt 0:00:47]} dxc4 {[%emt 0:00:49]} 8. Qc2 {[%emt 0:03:46]} Bxd2 {[%emt 0:04:25]} 9. Nbxd2 {[%emt 0:00:36]} b5 {[%emt 0:01:03]} 10. b3 {[%emt 0:05:43]} cxb3 {[%emt 0:01:32]} 11. axb3 {[%emt 0:03:01]} Bb7 {[%emt 0:04:45]} 12. Rfc1 {[%emt 0:07:31]} Nc6 {[%emt 0:04:51]} 13. Ne4 {[%emt 0:12:09]} Nd5 {[%emt 0:08:48]} 14. Nc5 {[%emt 0:03:12]} Ncb4 {[%emt 0:04:09]} 15. Qd2 {[%emt 0:03:52]} Bc6 {[%emt 0:03:38]} 16. Ne5 {[%emt 0:01:14]} Be8 {[%emt 1:02:24]} 17. e4 {[%emt 0:08:50]} Nb6 {[%emt 0:00:00]} 18. Nb7 {[%emt 0:01:40]} Qe7 {[%emt 0:00:00]} 19. Rxa5 {[%emt 0:06:47]} Rxa5 {[%emt 0:00:00]} 20. Nxa5 {[%emt 0:00:04]} f6 {[%emt 0:00:00]} 21. Nd3 {[%emt 0:06:18]} Nxd3 {[%emt 0:00:00]} 22. Qxd3 {[%emt 0:00:05]} Qa3 {[%emt 0:00:00]} 23. Qc3 {[%emt 0:00:25]} b4 {[%emt 0:00:00]} 24. Nc4 {[%emt 0:08:30]} Nxc4 {[%emt 0:00:00]} 25. Qxc4 {[%emt 0:00:12]} Bd7 {[%emt 0:00:00]} 26. Bh3 {[%emt 0:05:58]} Kh8 {[%emt 0:00:00]} 27. Qxc7 {[%emt 0:05:42]} h6 {[%emt 0:00:00]} 28. Re1 {[%emt 0:01:45]} Rf7 {[%emt 0:00:00]} 29. Qc4 {[%emt 0:01:49]} Re7 {[%emt 0:00:00]} 30. Qd3 {[%emt 0:01:14]} Ba4 {[%emt 0:00:00]} 31. Rb1 {[%emt 0:01:33]} Kg8 {[%emt 0:00:00]} 32. Qa6 {[%emt 0:01:36]} Qa2 {[%emt 0:00:40]} 33. Bxe6+ {[%emt 0:01:24]} Kh8 {[%emt 0:00:49]} 34. Rc1 {[%emt 0:01:12]} Qb2 {[%emt 0:03:04]} 35. Rc8+ {[%emt 0:00:28]} Kh7 {[%emt 0:00:56]} 36. Bf5+ {[%emt 0:00:43]} g6 {[%emt 0:00:38]} 37. Qxf6 {[%emt 0:00:56]} Rg7 {[%emt 0:00:32]} 38. Bxg6+ {[%emt 0:00:10]} 1-0